fUST/lending_fUST_20260129
["ID","MTS","AMOUNT","RATE_DAILY","PERIOD"]
[403963881,1769697040322,-500.0,0.000129,2]
[403963882,1769697040331,-500.0,0.000129,2]
[403963883,1769697040340,-167.53,0.000129,2]
[403963884,1769697040349,-167.53,0.000129,2]
[403963885,1769697040359,-167.53,0.000129,2]
[403963886,1769697040369,-167.53,0.000129,2]
[403963887,1769697040379,-167.53,0.000129,2]
[403963889,1769697040389,-167.53,0.000129,2]
[403963891,1769697040398,-167.51,0.000129,2]
[403963893,1769697040407,-274.54,0.000129,2]
[403963895,1769697040416,-864.0,0.00012994,2]
[403963897,1769697040426,-500.0,0.00013,2]
[403963899,1769697040435,-855.7467118,0.00013001,2]
[403963901,1769697040445,-250.0,0.0001301,2]
[403963904,1769697040454,-200.0,0.00013037,2]
[403963906,1769697040464,-500.0,0.00013037,2]
[403963908,1769697040473,-2966.21291707,0.00013125,2]
[403963910,1769697040484,-500.0,0.00013174,2]
[403963912,1769697040495,-524.91961321,0.00013273,2]
[403963914,1769697040504,-500.0,0.00013273,2]
[403963916,1769697040513,-177.31074097,0.00013273,2]
[403963917,1769697040523,-500.0,0.00013273,2]
[403963920,1769697040532,-500.0,0.00013273,2]
[403963922,1769697040546,-500.0,0.00013273,2]
[403963924,1769697040557,-502.30333023,0.00013273,2]
[403963927,1769697040567,-152.49167372,0.00013273,2]
[403963929,1769697040576,-217.62261144,0.00013273,2]
[403963931,1769697040585,-500.0,0.00013273,2]
[403963933,1769697040594,-500.0,0.00013273,2]
[403963934,1769697040603,-500.0,0.00013273,2]
[403963936,1769697040612,-254.4066558,0.00013273,2]
[403963938,1769697040621,-500.0,0.00013273,2]
[403963940,1769697040630,-269.41265799,0.00013273,2]
[403963943,1769697040639,-500.0,0.00013273,2]
[403963944,1769697040648,-500.0,0.00013273,2]
[403963946,1769697040657,-500.0,0.00013273,2]
[403963948,1769697040666,-500.15361623,0.00013273,2]
[403963950,1769697040675,-500.0,0.00013273,2]
[403963952,1769697040684,-274.54,0.000133,2]
[403963954,1769697040693,-250.0,0.00013311,2]
[403963956,1769697040702,-634.15117705,0.00013311,2]
[403963958,1769697040711,-160.0,0.00013613,2]
[403963961,1769697040721,-1041.66666667,0.00013613,2]
[403963963,1769697040731,-160.0,0.00013613,2]
[403963964,1769697040740,-268.56025121,0.0001368,2]
[403963967,1769697040749,-693.3919763,0.0001368,2]
[403963969,1769697040758,-250.0,0.0001368,2]
[403963970,1769697040768,-250.0,0.0001368,2]
[403963972,1769697040777,-229.51541308,0.0001368,2]
[403963974,1769697040786,-209.40437684,0.0001368,2]
[403963976,1769697040796,-217.15233878,0.0001368,2]
[403963978,1769697040809,-225.18697532,0.0001368,2]
[403963980,1769697040818,-233.51889341,0.0001368,2]
[403963982,1769697040828,-242.15909246,0.0001368,2]
[403963984,1769697040838,-251.11897888,0.0001368,2]
[403963986,1769697040847,-209.40437684,0.0001368,2]
[403963988,1769697040856,-260.4103811,0.0001368,2]
[403963990,1769697040866,-270.0455652,0.0001368,2]
[403963992,1769697040875,-280.03725112,0.0001368,2]
[403963994,1769697040884,-290.39862941,0.0001368,2]
[403963996,1769697040893,-301.1433787,0.0001368,2]
[403963998,1769697040902,-151.0,0.0001368,2]
[403964000,1769697040911,-4626.895246,0.00013687,2]
[403964002,1769697040920,-748.61706853,0.00013689,2]
[403964004,1769697040929,-500.0,0.00013698,2]
[403964006,1769697040938,-500.0,0.00013698,2]
[403964008,1769697040946,-500.0,0.00013698,2]
[403964010,1769697040955,-500.0,0.00013698,2]
[403964012,1769697040964,-500.0,0.00013698,2]
[403964014,1769697040973,-500.0,0.00013698,2]
[403964016,1769697040982,-500.0,0.00013698,2]
[403964018,1769697040992,-500.0,0.00013698,2]
[403964020,1769697041002,-500.0,0.00013698,2]
[403964022,1769697041017,-500.0,0.00013698,2]
[403964024,1769697041026,-500.0,0.00013698,2]
[403964026,1769697041036,-500.0,0.00013698,2]
[403964028,1769697041045,-500.0,0.00013698,2]
[403964030,1769697041056,-586.53134031,0.00013698,2]
[403964032,1769697041066,-14207.240606,0.00013699,2]
[403964034,1769697041074,-1000.0,0.00013699,2]
[403964036,1769697041083,-505.40496948,0.00013699,2]
[403964038,1769697041092,-500.0,0.00013699,2]
[403964040,1769697041101,-500.0,0.00013699,2]
[403964042,1769697041111,-500.0,0.00013699,2]
[403964044,1769697041120,-500.0,0.00013699,2]
[403964046,1769697041129,-500.0,0.00013699,2]
[403964048,1769697041138,-500.0,0.00013699,2]
[403964050,1769697041147,-500.0,0.00013699,2]
[403964051,1769697041157,-232.30730748,0.00013699,2]
[403964053,1769697041166,-313.84598892,0.00013699,2]
[403964055,1769697041175,-274.54,0.000137,2]
[403964057,1769697041184,-592.41079471,0.00013821,2]
[403964059,1769697041193,-1000.0,0.00013821,2]
[403964061,1769697041203,-1000.0,0.00013821,2]
[403964063,1769697041212,-355.419529,0.00013821,2]
[403964065,1769697041221,-1000.0,0.00013821,2]
[403964067,1769697041230,-1000.0,0.00013821,2]
[403964069,1769697041239,-551.77248145,0.00013821,2]
[403964070,1769697041248,-1000.0,0.00013821,2]
[403964072,1769697041257,-1000.0,0.00013821,2]
[403964074,1769697041265,-823.0,0.00013867,2]
[403964076,1769697041274,-3101.0,0.00013885,2]
[403964078,1769697041284,-1285.71398926,0.00013968,2]
[403964080,1769697041293,-2000.0,0.00014,2]
[403964082,1769697041305,-1526.16027621,0.00014092,2]
[403964085,1769697041314,-274.54,0.000141,2]
[403964086,1769697041323,-719.04747942,0.00014228,2]
[403964088,1769697041332,-209.55028088,0.00014228,2]
[403964090,1769697041341,-1000.0,0.00014247,2]
[403964092,1769697041351,-1000.0,0.00014247,2]
[403964094,1769697041360,-1134.23032778,0.00014247,2]
[403964096,1769697041370,-1000.0,0.00014247,2]
[403964098,1769697041379,-4626.895246,0.00014263,2]
[403964100,1769697041389,-1000.0,0.00014293,2]
[403964102,1769697041398,-1007.51247725,0.00014368,2]
[403964104,1769697041407,-1500.0,0.00014368,2]
[403964106,1769697041415,-897.62397769,0.00014368,2]
[403964108,1769697041424,-1500.0,0.00014368,2]
[403964110,1769697041433,-1500.0,0.00014368,2]
[403964112,1769697041443,-1500.0,0.00014368,2]
[403964114,1769697041452,-274.54,0.000145,2]
[403964116,1769697041461,-384.27243481,0.00014539,2]
[403964118,1769697041470,-1369.0,0.00014656,2]
[403964120,1769697041480,-630.0,0.00014656,2]
[403964122,1769697041494,-2150.0,0.00014656,2]
[403964124,1769697041503,-716.0,0.00014656,2]
[403964126,1769697041512,-180.914,0.00014656,2]
[403964128,1769697041523,-529.312,0.00014656,2]
[403964130,1769697041532,-418.0,0.00014656,2]
[403964132,1769697041542,-745.65223616,0.00014776,2]
[403964134,1769697041551,-501.10012348,0.00014795,2]
[403964136,1769697041563,-1500.0,0.00014795,2]
[403964138,1769697041572,-1500.0,0.00014795,2]
[403964140,1769697041581,-4626.895246,0.00014839,2]
[403964142,1769697041591,-274.54,0.000149,2]
[403964144,1769697041600,-1365.50900373,0.000149,2]
[403964146,1769697041610,-596.00080003,0.000149,2]
[403964147,1769697041619,-1174.31678051,0.00014916,2]
[403964149,1769697041628,-2000.0,0.00014916,2]
[403964151,1769697041637,-2000.0,0.00014916,2]
[403964153,1769697041647,-2000.0,0.00014916,2]
[403964155,1769697041657,-203.757,0.00014932,2]
[403964157,1769697041667,-2000.0,0.00015,2]
[403964159,1769697041676,-250.0,0.00015,2]
[403964161,1769697041686,-1020.77037412,0.00015,2]
[403964163,1769697041695,-90000.0,0.00015,2]
[403964165,1769697041705,-40904.92377895,0.00015,2]
[403964167,1769697041714,-151.25880561,0.00015,2]
[403964169,1769697041723,-12223.04805184,0.00015,2]
[403964171,1769697041732,-324.837658,0.00015068,2]
[403964173,1769697041742,-459.88918908,0.00015104,2]
[403964175,1769697041752,-500.0,0.00015104,2]
[403964177,1769697041763,-5142.85595706,0.00015217,2]
[403964179,1769697041772,-159.5033444,0.00015239,2]
[403964181,1769697041782,-1152.0,0.00015247,2]
[403964183,1769697041791,-150.0,0.00015289,2]
[403964185,1769697041799,-274.54,0.000153,2]
[403964187,1769697041811,-1526.16027621,0.00015309,2]
[403964189,1769697041819,-512.8543748,0.00015324,2]
[403964191,1769697041828,-10000.0,0.00015342,2]
[403964193,1769697041838,-2000.0,0.00015342,2]
[403964195,1769697041847,-200.0,0.00015399,2]
[403964197,1769697041856,-1581538.10995057,0.000154,2]
[403964199,1769697041865,-12223.04805184,0.000154,2]
[403964201,1769697041875,-2994.46827411,0.00015409,2]
[403964203,1769697041884,-4626.895246,0.00015415,2]
[403964205,1769697041893,-200.65392429,0.00015441,2]
[403964206,1769697041902,-9010.42,0.00015442,2]
[403964208,1769697041911,-1500.0,0.00015464,2]
[403964210,1769697041921,-2500.0,0.00015464,2]
[403964212,1769697041930,-2500.0,0.00015464,2]
[403964214,1769697041938,-1578.73,0.00015559,2]
[403964216,1769697041947,-5000.0,0.0001564,2]
[403964218,1769697041956,-1000.0,0.00015722,2]
[403964220,1769697041965,-244.0,0.00015722,2]
[403964222,1769697041974,-274.54,0.000158,2]
[403964224,1769697041983,-2966.21291707,0.00015811,2]
[403964226,1769697041992,-2500.0,0.0001589,2]
[403964228,1769697042001,-746.47528404,0.00015928,2]
[403964230,1769697042010,-4626.895246,0.00015992,2]
[403964232,1769697042019,-2500.0,0.00016012,2]
[403964234,1769697042028,-3085.83878744,0.00016012,2]
[403964236,1769697042037,-226.0,0.00016037,2]
[403964238,1769697042046,-226.0,0.00016131,2]
[403964240,1769697042056,-168.0,0.00016141,2]
[403964242,1769697042065,-168.0,0.00016154,2]
[403964244,1769697042074,-274.54,0.000162,2]
[403964246,1769697042083,-226.0,0.00016289,2]
[403964247,1769697042092,-226.0,0.00016325,2]
[403964249,1769697042101,-200.0,0.00016438,2]
[403964251,1769697042110,-188.40519989,0.00016438,2]
[403964253,1769697042119,-500.0,0.00016438,2]
[403964255,1769697042128,-597.65489359,0.00016438,2]
[403964257,1769697042138,-3000.0,0.00016438,2]
[403964259,1769697042147,-186.31,0.0001644,2]
[403964261,1769697042157,-226.0,0.00016446,2]
[403964263,1769697042166,-435.13202178,0.00016539,2]
[403964264,1769697042175,-226.0,0.0001656,2]
[403964266,1769697042184,-4626.895246,0.00016568,2]
[403964268,1769697042193,-274.54,0.000166,2]
[403964270,1769697042203,-226.0,0.00016631,2]
[403964272,1769697042212,-1613.0,0.00016764,2]
[403964274,1769697042221,-3500.0,0.00016986,2]
[403964276,1769697042231,-274.54,0.00017,2]
[403964278,1769697042240,-41983.669035,0.00017,7]
[403964280,1769697042249,-645.0,0.000171,2]
[403964282,1769697042259,-168.0,0.00017262,2]
[403964284,1769697042267,-1000.0,0.00017295,2]
[403964286,1769697042277,-492.0,0.00017295,2]
[403964287,1769697042286,-226.0,0.00017309,2]
[403964289,1769697042295,-226.0,0.00017374,2]
[403964291,1769697042304,-274.54,0.000174,2]
[403964293,1769697042314,-168.0,0.00017422,2]
[403964295,1769697042323,-1319.71586935,0.00017534,2]
[403964297,1769697042333,-1369.0,0.00017656,2]
[403964299,1769697042342,-630.0,0.00017656,2]
[403964301,1769697042351,-716.0,0.00017656,2]
[403964303,1769697042361,-179.0,0.00017656,2]
[403964305,1769697042370,-418.0,0.00017656,2]
[403964307,1769697042379,-418.0,0.00017656,2]
[403964309,1769697042388,-268.0,0.00017671,3]
[403964311,1769697042398,-274.54,0.000178,2]
[403964313,1769697042407,-150.0,0.00017932,2]
[403964315,1769697042416,-880.632,0.00018,2]
[403964317,1769697042425,-136031.1,0.00018082,3]
[403964318,1769697042434,-274.54,0.000182,2]
[403964320,1769697042444,-11995.33401,0.0001836,7]
[403964322,1769697042453,-2258.0,0.00018433,2]
[403964324,1769697042464,-324.837658,0.00018493,2]
[403964326,1769697042473,-2966.21291707,0.00018496,2]
[403964328,1769697042487,-485.99160874,0.00018539,2]
[403964330,1769697042496,-1681.872952,0.00018539,7]
[403964332,1769697042505,-274.54,0.000186,2]
[403964334,1769697042514,-5000.0,0.00018768,2]
[403964336,1769697042524,-303.10001603,0.000189,2]
[403964338,1769697042534,-274.54,0.00019,2]
[403964340,1769697042544,-1000.0,0.00019024,2]
[403964342,1769697042553,-791.0,0.00019024,2]
[403964344,1769697042564,-303.10001603,0.00019089,2]
[403964346,1769697042573,-508.1504,0.00019178,2]
[403964347,1769697042583,-200.0,0.00019178,2]
[403964349,1769697042592,-508.1504,0.00019178,2]
[403964351,1769697042600,-508.1504,0.00019178,2]
[403964353,1769697042610,-508.1504,0.00019178,2]
[403964355,1769697042619,-508.1504,0.00019178,2]
[403964357,1769697042629,-508.1504,0.00019178,2]
[403964359,1769697042639,-3544.87,0.000192,2]
[403964361,1769697042649,-303.10001603,0.00019278,2]
[403964363,1769697042658,-163.15,0.000193,2]
[403964365,1769697042668,-303.10001603,0.00019467,2]
[403964366,1769697042677,-274.54,0.000195,2]
[403964368,1769697042687,-508.1504,0.00019589,3]
[403964370,1769697042697,-508.1504,0.00019589,3]
[403964372,1769697042707,-508.1504,0.00019589,3]
[403964374,1769697042716,-508.1504,0.00019589,3]
[403964388,1769697042841,-508.1504,0.00019589,3]
[403964390,1769697042851,-508.1504,0.00019589,3]
[403964392,1769697042860,-303.10001603,0.00019656,2]
[403964394,1769697042870,-454.65002405,0.00019845,4]
[403964395,1769697042879,-160.0,0.00019863,3]
[403964397,1769697042889,-274.54,0.000199,2]
[403964399,1769697042898,-1200.0,0.0002,5]
[403964401,1769697042907,-508.1504,0.0002,4]
[403964403,1769697042916,-508.1504,0.0002,4]
[403964405,1769697042926,-508.1504,0.0002,4]
[403964407,1769697042935,-2000.0,0.0002,7]
[403964409,1769697042945,-508.1504,0.0002,4]
[403964411,1769697042954,-508.1504,0.0002,4]
[403964413,1769697042963,-508.1504,0.0002,4]
[403964415,1769697042974,-480.535129,0.00020022,7]
[403964417,1769697042984,-454.65002405,0.00020034,4]
[403964419,1769697042993,-454.65002405,0.00020223,4]
[403964421,1769697043002,-3162.0,0.00020267,2]
[403964423,1769697043012,-274.54,0.000203,2]
[403964425,1769697043021,-5000.0,0.00020332,2]
[403964427,1769697043030,-454.65002405,0.00020412,4]
[403964429,1769697043039,-536.8511957,0.00020539,2]
[403964431,1769697043048,-454.65002405,0.00020601,4]
[403964432,1769697043057,-1369.0,0.00020656,2]
[403964434,1769697043066,-630.0,0.00020656,2]
[403964436,1769697043076,-716.0,0.00020656,2]
[403964438,1769697043084,-179.0,0.00020656,2]
[403964440,1769697043093,-418.0,0.00020656,2]
[403964442,1769697043102,-418.0,0.00020656,2]
[403964444,1769697043111,-274.54,0.000207,2]
[403964446,1769697043120,-151.0,0.000209,4]
[403964448,1769697043129,-256.84706836,0.000209,2]
[403964450,1769697043138,-151.0,0.000209,4]
[403964452,1769697043147,-1000.0,0.00020926,2]
[403964454,1769697043157,-1000.0,0.00020926,2]
[403964456,1769697043166,-299.999999,0.00021,2]
[403964457,1769697043175,-274.54,0.000211,2]
[403964460,1769697043184,-3544.87,0.000211,2]
[403964461,1769697043194,-326.32,0.00021132,2]
[403964463,1769697043203,-2966.21291707,0.00021182,2]
[403964465,1769697043212,-5997.667005,0.0002125,7]
[403964467,1769697043222,-150.0,0.00021289,2]
[403964469,1769697043231,-176.93253329,0.00021352,5]
[403964471,1769697043240,-274.54,0.000215,2]
[403964473,1769697043250,-163.15,0.000215,2]
[403964475,1769697043259,-326.3362392,0.00021598,2]
[403964477,1769697043268,-3022.18417712,0.00021821,4]
[403964479,1769697043277,-710.0,0.00021836,2]
[403964481,1769697043287,-274.54,0.000219,2]
[403964483,1769697043295,-324.837658,0.00021918,2]
[403964485,1769697043307,-237.905613,0.00021924,2]
[403964486,1769697043318,-623.9273602,0.00021924,2]
[403964487,1769697043327,-150.30876592,0.00022,2]
[403964488,1769697043337,-549.91,0.00022,7]
[403964489,1769697043346,-163.0,0.00022055,6]
[403964490,1769697043355,-1759.69047402,0.00022074,4]
[403964491,1769697043365,-2910.0,0.00022284,2]
[403964492,1769697043375,-274.54,0.000223,2]
[403964493,1769697043384,-587.71078266,0.00022539,2]
[403964494,1769697043394,-800.0,0.00022646,2]
[403964495,1769697043403,-274.54,0.000227,2]
[403964496,1769697043413,-184.3271462,0.00022739,2]
[403964497,1769697043422,-603.4541022,0.00022739,2]
[403964498,1769697043432,-185.4706062,0.00022745,2]
[403964499,1769697043441,-604.1333812,0.00022745,2]
[403964500,1769697043451,-604.1333812,0.00022745,2]
[403964501,1769697043460,-604.1333812,0.00022745,2]
[403964502,1769697043469,-160.0,0.00023,3]
[403964503,1769697043480,-1041.66666667,0.00023,3]
[403964504,1769697043491,-1000.0,0.00023019,10]
[403964505,1769697043500,-1000.0,0.00023019,10]
[403964506,1769697043509,-579.0,0.00023019,10]
[403964507,1769697043518,-161.0,0.00023024,3]
[403964508,1769697043528,-217.43292674,0.0002305,2]
[403964509,1769697043537,-3544.87,0.000231,2]
[403964510,1769697043546,-240.267564,0.00023173,30]
[403964511,1769697043557,-274.54,0.000232,2]
[403964512,1769697043567,-710.0,0.00023363,3]
[403964513,1769697043576,-1844834.24256598,0.0002352,2]
[403964514,1769697043593,-6563.08556657,0.0002352,2]
[403964515,1769697043604,-3901.38757581,0.0002352,2]
[403964516,1769697043791,-3e-08,0.00012861,2]
[403964518,1769697043802,-3760.81066436,0.00012861,2]
[403964519,1769697043814,-151.0,0.0001368,2]
[403964521,1769697043824,-246.47777937,0.0001368,2]
[403964523,1769697043833,-508.1504,0.00019178,2]
[403964524,1769697043842,-12909.37140263,0.0002352,2]
[403964526,1769697043852,-500.0,0.0002352,2]
[403964528,1769697043863,-4096.66985013,0.0002352,2]
[403964530,1769697043874,-24109.94391445,0.0002352,2]
[403964533,1769697043885,-5103.80831106,0.0002352,2]
[403964777,1769697046354,-500.0,0.00010641,2]
[403964778,1769697046363,-500.0,0.00010641,2]
[403964779,1769697046372,-500.0,0.00010641,2]
[403964780,1769697046381,-500.0,0.00010641,2]
[403964781,1769697046389,-500.0,0.00010641,2]
[403964782,1769697046398,-215.99848804,0.00010641,2]
[403965021,1769697108650,-419.2,0.000104,2]
[403965022,1769697124023,-5000.0,0.0001043,2]
[403965025,1769697139484,-294.08530582,0.00010483,2]
[403965026,1769697154769,-5000.0,0.00010535,2]
[403965027,1769697159309,0.01,0.00010535,2]
[403965028,1769697159335,4999.99,0.00010535,2]
[403965029,1769697167145,4013.21919276,0.00010535,2]
[403965030,1769697182553,5000.0,0.00010641,2]
[403965031,1769697182886,300.0,0.0001064,2]
[403965032,1769697182930,300.0,0.0001064,2]
[403965033,1769697204932,4400.01,0.00010641,2]
[403965034,1769697204965,599.99,0.00010641,2]
[403965035,1769697212807,5000.0,0.00010641,2]
[403965036,1769697216629,-500.0,0.00010641,2]
[403965037,1769697216663,-284.00151196,0.00010641,2]
[403965038,1769697216694,-500.0,0.00010641,2]
[403965039,1769697216726,-500.0,0.00010641,2]
[403965040,1769697216758,-500.0,0.00010641,2]
[403965041,1769697216787,-500.0,0.00010641,2]
[403965042,1769697216818,-500.0,0.00010641,2]
[403965043,1769697216850,-500.0,0.00010641,2]
[403965044,1769697216880,-500.0,0.00010641,2]
[403965045,1769697216910,-500.0,0.00010641,2]
[403965046,1769697217035,-500.0,0.00010641,2]
[403965047,1769697217067,-500.0,0.00010641,2]
[403965048,1769697217097,-500.0,0.00010641,2]
[403965049,1769697217125,-500.0,0.00010641,2]
[403965050,1769697217155,-500.0,0.00010641,2]
[403965051,1769697217186,-500.0,0.00010641,2]
[403965052,1769697217221,-500.0,0.00010641,2]
[403965053,1769697217253,-500.0,0.00010641,2]
[403965054,1769697217284,-500.0,0.00010641,2]
[403965055,1769697217317,-500.0,0.00010641,2]
[403965056,1769697217464,-500.0,0.00010641,2]
[403965057,1769697217496,-500.0,0.00010641,2]
[403965058,1769697217528,-500.0,0.00010641,2]
[403965059,1769697217714,-254.15072793,0.00010641,2]
[403965060,1769697217751,-500.0,0.00010641,2]
[403965061,1769697217784,-500.0,0.00010641,2]
[403965062,1769697217817,-500.0,0.00010641,2]
[403965063,1769697217849,-500.0,0.00010641,2]
[403965064,1769697217880,-500.0,0.00010641,2]
[403965065,1769697217911,-500.0,0.00010641,2]
[403965066,1769697222481,-500.0,0.00010641,2]
[403965067,1769697222512,-394.31080171,0.00010641,2]
[403965068,1769697222544,-500.0,0.00010641,2]
[403965069,1769697222578,-500.0,0.00010641,2]
[403965070,1769697222614,-500.0,0.00010641,2]
[403965071,1769697222647,-500.0,0.00010641,2]
[403965072,1769697222679,-500.0,0.00010641,2]
[403965073,1769697222713,-407.34611167,0.00010641,2]
[403965074,1769697222743,-500.0,0.00010641,2]
[403965075,1769697222774,-500.0,0.00010641,2]
[403965076,1769697347350,5316.4484253,9.563e-05,2]
[403965077,1769697389920,-3709.56297739,0.00010326,2]
[403965078,1769697405223,-1200.0,0.00010429,2]
[403965079,1769697405258,-300.0,0.00010429,2]
[403965080,1769697421078,-4486.10941334,0.0001043,2]
[403965081,1769697421214,5000.0,0.00010429,2]
[403965082,1769697421253,-1027.79117332,0.0001043,2]
[403965083,1769697429423,1042.38077881,0.0001043,2]
[403965087,1769697467199,-5000.0,0.00010429,2]
[403965088,1769697474908,0.01,0.00010429,2]
[403965089,1769697474936,4999.99,0.00010429,2]
[403965090,1769697480677,431.04,3.8e-06,2]
[403965091,1769697480987,431.04,3.8e-06,2]
[403965092,1769697482424,-300.0,0.00010534,2]
[403965093,1769697490951,5000.0,0.00010534,2]
[403965094,1769697495799,168.026235,9.84e-05,2]
[403965095,1769697498756,5000.0,0.00010534,2]
[403965096,1769697514642,5000.0,0.00010537,2]
[403965097,1769697523344,0.01,0.00010537,2]
[403965098,1769697523371,4999.99,0.00010537,2]
[403965099,1769697625732,-170.22,0.0001,2]
[403965100,1769697641590,-5000.0,0.00010328,2]
[403965101,1769697641721,-170.22,0.000104,2]
[403965102,1769697656048,-1200.0,0.00010431,2]
[403965103,1769697659059,5000.0,0.00010431,2]
[403965104,1769697671348,-5000.0,0.00010432,2]
[403965105,1769697674226,0.01,0.00010432,2]
[403965106,1769697674254,4999.99,0.00010432,2]
[403965107,1769697678766,150.02158472,0.00010367,2]
[403965108,1769697679128,150.0,0.00010367,2]
[403965109,1769697679570,150.0,0.00010367,2]
[403965110,1769697680174,150.0,0.00010367,2]
[403965111,1769697680807,201.4653447,0.00010367,2]
[403965112,1769697680838,150.0,0.00010367,2]
[403965113,1769697680968,150.0,0.00010367,2]
[403965114,1769697681371,500.0,0.00010367,2]
[403965115,1769697681820,500.0,0.00010367,2]
[403965116,1769697681889,150.0,0.00010367,2]
[403965117,1769697681995,2748.53307058,0.00010432,2]
[403965118,1769697682021,2251.46692942,0.00010432,2]
[403965119,1769697682657,150.0,0.00010367,2]
[403965120,1769697683541,150.0,0.00010367,2]
[403965121,1769697683869,150.0,0.00010367,2]
[403965122,1769697684457,284.23301321,0.00010367,2]
[403965123,1769697811288,-300.0,0.0001029,2]
[403965124,1769697830518,-5000.0,0.00010291,2]
[403965125,1769697830794,-564.0,0.00010291,2]
[403965126,1769697835667,5000.0,0.00010291,2]
[403965127,1769697842955,-355.58513258,0.00010329,2]
[403965128,1769697857680,5000.0,0.00010329,2]
[403965129,1769697858314,-500.0,0.00010367,2]
[403965130,1769697858347,-150.0,0.00010367,2]
[403965132,1769697880002,714.45145812,0.00010367,2]
[403965133,1769697895551,5000.0,0.00010367,2]
[403965134,1769697918201,2985.55854188,0.00010367,2]
[403965135,1769697918229,2014.44145812,0.00010367,2]
[403965136,1769697941717,5000.0,0.00010367,2]
[403965137,1769697943996,500.0,0.00010265,2]
[403965138,1769697963973,2485.56854188,0.00010367,2]
[403965139,1769697968797,-2514.43145812,0.00010367,2]
[403965143,1769697982229,171.027379,9.434e-05,2]
[403965144,1769697982442,171.027379,0.00010005,2]
[403965145,1769697983856,-500.0,0.00010402,2]
[403965146,1769697983889,-203.36347291,0.00010402,2]
[403965147,1769697986244,5000.0,0.00010367,2]
[403965149,1769697999323,-419.2,0.000105,2]
[403965150,1769698008555,5000.0,0.000105,2]
[403965151,1769698030850,4161.61,0.000105,2]
[403965152,1769698030879,838.39,0.000105,2]
[403965158,1769698043087,500.0,0.00010264,2]
[403965159,1769698043276,500.0,0.00010401,2]
[403965160,1769698044460,210.95757695,0.00010264,2]
[403965163,1769698053281,5000.0,0.000105,2]
[403965166,1769698075586,2950.66242305,0.000105,2]
[403965167,1769698075620,2049.33757695,0.000105,2]
[403965168,1769698099598,5000.0,0.000105,2]
[403965178,1769698123466,2950.67242305,0.000105,2]
[403965179,1769698123496,2049.32757695,0.000105,2]
[403965180,1769698145914,1884.35361403,0.000105,2]
[403965268,1769698233009,-1200.0,0.00010502,2]
[403965269,1769698233019,-216.0,0.00010503,2]
[403965270,1769698233030,-300.0,0.00010503,2]
[403965271,1769698233041,-300.0,0.00010503,2]
[403965272,1769698233051,-300.0,0.00010503,2]
[403965273,1769698233061,-300.0,0.00010503,2]
[403965274,1769698233072,-567.0,0.00010503,2]
[403965275,1769698233082,-348.47342992,0.00010503,2]
[403965276,1769698233091,-150.0,0.00010504,2]
[403965277,1769698233101,-151.04060416,0.00010504,2]
[403965278,1769698233112,-500.0,0.00010504,2]
[403965279,1769698233122,-500.0,0.00010504,2]
[403965280,1769698233133,-150.0,0.00010504,2]
[403965281,1769698233143,-150.0,0.00010504,2]
[403965282,1769698233153,-150.0,0.00010504,2]
[403965283,1769698233164,-150.4025982,0.00010504,2]